bitfinex-derivatives/quotes_BTCF0:USTF0_20241208
["timestamp","ask_amount","ask_price","bid_price","bid_amount"]
[1733660218669,0.045129,99644.0,99643.0,0.00409171]
[1733660219055,0.09391281,99644.0,99643.0,0.00409171]
[1733660219256,0.09391281,99644.0,99621.0,0.00874626]
[1733660219257,0.2807,99643.0,99628.0,0.18004149]
[1733660219468,0.3608,99629.0,99619.0,0.18004149]
[1733660219765,0.3608,99621.0,99617.0,0.18154721]
[1733660220065,0.04514,99618.0,99617.0,0.00150572]
[1733660220272,0.0452492,99618.0,99617.0,0.00150572]
[1733660221269,0.0462492,99618.0,99617.0,0.00650572]
[1733660222072,0.0462492,99618.0,99617.0,0.01050572]
[1733660223976,0.0462492,99618.0,99617.0,0.00750572]
[1733660225173,0.0011092,99618.0,99617.0,0.41344672]
[1733660228275,0.0011092,99618.0,99617.0,0.59348821]
[1733660228772,0.0011092,99618.0,99617.0,0.602552]
[1733660229574,0.0011092,99618.0,99617.0,0.42251051]
[1733660232670,0.0011092,99618.0,99617.0,0.42752928]
[1733660232875,0.0011092,99618.0,99617.0,0.44318768]
[1733660233981,0.0011092,99618.0,99617.0,0.46386425]
[1733660234482,0.0011092,99618.0,99617.0,0.44318768]
[1733660235185,0.0011092,99618.0,99617.0,0.63135251]
[1733660235677,0.0011092,99618.0,99617.0,0.64387416]
[1733660235882,0.0011092,99618.0,99617.0,0.64390261]
[1733660236188,0.0011092,99618.0,99617.0,0.46386449]
[1733660236371,0.0011092,99618.0,99617.0,0.64390261]
[1733660237575,0.0011092,99618.0,99617.0,0.46386449]
[1733660241086,0.0011092,99618.0,99617.0,0.45570933]
[1733660241386,0.0011092,99618.0,99617.0,0.44318768]
[1733660241784,0.0011092,99618.0,99617.0,0.42251051]
[1733660242185,0.0011092,99618.0,99617.0,0.44005308]
[1733660242385,0.0011092,99618.0,99617.0,0.44318979]
[1733660243184,0.0011092,99618.0,99617.0,0.434126]
[1733660244281,0.0011092,99618.0,99617.0,0.073326]
[1733660244679,0.0011092,99618.0,99617.0,0.07363124]
[1733660244877,0.0011092,99618.0,99617.0,0.073326]
[1733660245291,0.0011092,99618.0,99617.0,0.3693891]
[1733660246893,0.0011092,99618.0,99617.0,0.7301891]
[1733660247084,0.0011092,99618.0,99617.0,0.70950982]
[1733660248092,0.0011092,99618.0,99617.0,0.73018012]
[1733660248681,0.12018504,99631.0,99617.0,0.72985316]
[1733660248878,0.18046242,99652.0,99629.0,0.3608]
[1733660248879,0.12018504,99634.0,99629.0,0.3608]
[1733660249189,0.12018504,99635.0,99634.0,0.045133]
[1733660249486,0.12018504,99639.0,99634.0,0.00815501]
[1733660249792,0.0321,99645.0,99635.0,0.26088844]
[1733660249793,0.09018819,99638.0,99635.0,0.26088844]
[1733660249995,0.09018819,99639.0,99638.0,0.045131]
[1733660250190,0.12018504,99639.0,99638.0,0.02064972]
[1733660250388,0.12018504,99642.0,99638.0,0.02064972]
[1733660250704,0.045128,99645.0,99634.0,0.00030501]
[1733660250705,0.0901526,99640.0,99639.0,0.24594358]
[1733660251082,0.15318504,99643.0,99642.0,0.045129]
[1733660251278,0.15318504,99643.0,99642.0,0.05328401]
[1733660251488,0.033,99643.0,99642.0,0.05328401]
[1733660252881,0.033,99643.0,99642.0,0.045129]
[1733660253291,0.034,99643.0,99642.0,0.045129]
[1733660253486,0.035,99643.0,99642.0,0.045129]
[1733660253795,0.035,99643.0,99642.0,0.04826502]
[1733660254094,0.035,99643.0,99642.0,0.05328265]
[1733660256687,0.035,99643.0,99642.0,0.0657622]
[1733660256890,0.1250801,99643.0,99642.0,0.05328265]
[1733660257192,0.1250801,99643.0,99642.0,0.06576216]
[1733660257380,0.002,99643.0,99642.0,0.24572489]
[1733660257584,0.002,99643.0,99642.0,0.06576216]
[1733660258389,0.002,99643.0,99642.0,0.045129]
[1733660258896,0.002,99643.0,99642.0,0.405929]
[1733660259688,0.002,99643.0,99642.0,0.42654772]
[1733660260393,0.002,99643.0,99642.0,0.41408151]
[1733660260691,0.002,99643.0,99642.0,0.42654322]
[1733660261893,0.047129,99643.0,99642.0,0.42654322]
[1733660262288,0.047129,99643.0,99642.0,0.00815251]
[1733660262485,0.047129,99643.0,99642.0,0.04826558]
[1733660265298,0.0560866,99643.0,99642.0,0.04826558]
[1733660266789,0.047129,99643.0,99642.0,0.04826558]
[1733660267401,0.047129,99643.0,99642.0,0.05328353]
[1733660267998,0.047129,99643.0,99642.0,0.00815353]
[1733660271701,0.13716276,99643.0,99642.0,0.00815353]
[1733660272009,0.047129,99643.0,99642.0,0.05328353]
[1733660272501,0.002,99643.0,99642.0,0.40593]
[1733660273103,0.002,99643.0,99642.0,0.64554886]
[1733660273300,0.002,99643.0,99642.0,0.58582856]
[1733660273501,0.002,99643.0,99642.0,0.40593]
[1733660273697,0.002,99643.0,99642.0,0.41094755]
[1733660274209,0.002,99643.0,99642.0,0.41408352]
[1733660274399,0.002,99643.0,99642.0,0.42656247]
[1733660275193,0.002,99643.0,99642.0,0.42154492]
[1733660275406,0.002,99643.0,99642.0,0.41840895]
[1733660275620,0.002,99643.0,99642.0,0.43402311]
[1733660275806,0.002,99643.0,99642.0,0.45778706]
[1733660276002,0.002,99643.0,99642.0,0.46280413]
[1733660276512,0.002,99643.0,99642.0,0.47527965]
[1733660277105,0.002,99643.0,99642.0,0.47527959]
[1733660278508,0.002,99643.0,99642.0,0.71514434]
[1733660278709,0.002,99643.0,99642.0,0.47527959]
[1733660279109,0.002,99643.0,99642.0,0.71514434]
[1733660280414,0.002,99643.0,99642.0,0.47527957]
[1733660280607,0.002,99643.0,99642.0,0.47527983]
[1733660282112,0.002,99643.0,99642.0,0.42655844]
[1733660283408,0.047129,99643.0,99642.0,0.42655844]
[1733660283616,0.047129,99643.0,99642.0,0.41840544]
[1733660283913,0.047129,99643.0,99642.0,0.42655866]
[1733660288205,0.047129,99643.0,99642.0,0.06575866]
[1733660288403,0.047129,99643.0,99642.0,0.42655866]
[1733660288803,0.13716276,99643.0,99642.0,0.42655866]
[1733660290112,0.047129,99643.0,99642.0,0.42655866]
[1733660292208,0.047129,99643.0,99642.0,0.06575866]
[1733660292409,0.047129,99643.0,99642.0,0.42655866]
[1733660293019,0.047129,99643.0,99642.0,0.36895322]
[1733660293617,0.047129,99643.0,99642.0,0.3608]
[1733660294216,0.16731404,99643.0,99642.0,0.3608]
[1733660294714,0.16731404,99643.0,99642.0,0.3689538]
[1733660295107,0.16731404,99643.0,99642.0,0.0081538]
[1733660295315,0.13726175,99643.0,99642.0,0.18818505]
[1733660295521,0.047129,99643.0,99642.0,0.0081538]
[1733660298105,0.047129,99643.0,99642.0,0.18829825]
[1733660299020,0.047129,99643.0,99642.0,0.0081538]
[1733660299420,0.047129,99643.0,99642.0,0.00313608]
[1733660299722,0.09591297,99643.0,99642.0,0.00313608]
[1733660300408,0.045137,99626.0,99625.0,0.18014445]
[1733660300621,0.045133,99635.0,99625.0,0.00501871]
[1733660300622,0.12019521,99629.0,99625.0,0.00501871]
[1733660300813,0.0304,99628.0,99626.0,0.00501872]
[1733660301020,0.075536,99628.0,99627.0,0.00501885]
[1733660302612,0.075536,99628.0,99627.0,0.00801885]
[1733660302613,0.076536,99628.0,99627.0,0.00801885]
[1733660303521,0.076536,99628.0,99627.0,0.003]
[1733660303723,0.19673121,99628.0,99627.0,0.005]
[1733660304022,0.076536,99628.0,99627.0,0.005]
[1733660304521,0.08558888,99628.0,99627.0,0.005]
[1733660307817,0.076536,99628.0,99627.0,0.005]
[1733660308218,0.16650948,99628.0,99627.0,0.005]
[1733660309324,0.076536,99628.0,99627.0,0.005]
[1733660309530,0.16650948,99628.0,99627.0,0.005]
[1733660309724,0.16651105,99628.0,99627.0,0.005]
[1733660309929,0.09616059,99628.0,99627.0,0.005]
[1733660312332,0.09616059,99628.0,99627.0,0.00813682]
[1733660313141,0.21617527,99628.0,99627.0,0.00813682]
[1733660313431,0.09616059,99628.0,99627.0,0.00813682]
[1733660313927,0.06576059,99628.0,99627.0,0.00813682]
[1733660314422,0.001,99628.0,99627.0,0.00813682]
[1733660314823,0.001,99628.0,99627.0,0.01315546]
[1733660315038,0.001,99628.0,99627.0,0.005]
[1733660315330,0.001,99628.0,99627.0,0.01315524]
[1733660316235,0.046136,99628.0,99627.0,0.01315524]
[1733660316621,0.046136,99628.0,99627.0,0.05829224]
[1733660325536,0.001,99628.0,99627.0,0.41909224]
[1733660326040,0.001,99628.0,99627.0,0.43155391]
[1733660326638,0.001,99628.0,99627.0,0.72409996]
[1733660326848,0.001,99628.0,99627.0,0.72723619]
[1733660327541,0.001,99628.0,99627.0,1.02727802]
[1733660327936,0.001,99628.0,99627.0,0.7315947]
[1733660328241,0.001,99628.0,99627.0,1.02563024]
[1733660328545,0.001,99628.0,99627.0,0.73155676]
[1733660329230,0.001,99628.0,99627.0,0.43155287]
[1733660332238,0.001,99628.0,99627.0,0.07075287]
[1733660332444,0.046136,99628.0,99627.0,0.0131542]
[1733660336035,0.1361204,99628.0,99627.0,0.0131542]
[1733660336547,0.1361204,99628.0,99627.0,0.01001797]
[1733660336742,0.1361204,99628.0,99627.0,0.005]
[1733660337342,0.046136,99628.0,99627.0,0.01315545]
[1733660337536,0.046136,99628.0,99627.0,0.00813671]
[1733660337737,0.16615068,99628.0,99627.0,0.00813671]
[1733660338538,0.16615068,99628.0,99627.0,0.00813686]
[1733660340645,0.046136,99628.0,99627.0,0.00813686]
[1733660341339,0.076736,99628.0,99627.0,0.00813686]
[1733660342155,0.076736,99628.0,99627.0,0.00813687]
[1733660343553,0.046136,99628.0,99627.0,0.05327387]
[1733660343753,0.046136,99628.0,99627.0,0.05829276]
[1733660348744,0.13621889,99628.0,99627.0,0.05829276]
[1733660349461,0.046136,99628.0,99627.0,0.05829276]
[1733660350352,0.046136,99628.0,99627.0,0.05327387]
[1733660353356,0.13621889,99628.0,99627.0,0.05327387]
[1733660354264,0.13621287,99628.0,99627.0,0.05327387]
[1733660355156,0.046136,99628.0,99627.0,0.05327387]
[1733660355458,0.13621267,99628.0,99627.0,0.05327387]
[1733660355664,0.046136,99628.0,99627.0,0.05327387]
[1733660355956,0.13621175,99628.0,99627.0,0.05829243]
[1733660356159,0.13621175,99628.0,99627.0,0.050137]
[1733660356362,0.13621175,99628.0,99627.0,0.05829229]
[1733660356657,0.046136,99628.0,99627.0,0.05327365]
[1733660357248,0.046136,99628.0,99627.0,0.05829232]
[1733660357659,0.13621175,99628.0,99627.0,0.05829232]
[1733660358252,0.046136,99628.0,99627.0,0.05829232]
[1733660359259,0.046136,99628.0,99627.0,0.01315532]
[1733660360562,0.046136,99628.0,99627.0,0.1931229]
[1733660361259,0.046136,99628.0,99627.0,0.01315532]
[1733660362560,0.09492261,99628.0,99627.0,0.01315532]
[1733660364462,0.09492261,99628.0,99627.0,0.05829132]
[1733660365673,0.45572261,99628.0,99627.0,0.05829132]
[1733660367059,0.45572261,99628.0,99627.0,0.01315532]
[1733660367472,0.45572356,99628.0,99627.0,0.01315532]
[1733660368262,0.45572356,99628.0,99627.0,0.19349388]
[1733660368674,0.09492356,99628.0,99627.0,0.19349388]
[1733660368971,0.45572356,99628.0,99627.0,0.19349388]
[1733660370666,0.046136,99628.0,99627.0,0.01315532]
[1733660370859,0.406936,99628.0,99627.0,0.01315532]
[1733660373367,0.55741114,99628.0,99627.0,0.01315532]
[1733660373979,0.55741114,99628.0,99627.0,0.005]
[1733660374173,0.55741114,99628.0,99627.0,0.01315558]
[1733660374974,0.19661114,99628.0,99627.0,0.01315558]
[1733660375275,0.55741114,99628.0,99627.0,0.01315558]
[1733660376176,0.19661114,99628.0,99627.0,0.01315558]
[1733660376477,0.55741114,99628.0,99627.0,0.01315558]
[1733660377677,0.09492364,99628.0,99627.0,0.01315558]
[1733660377868,0.45572364,99628.0,99627.0,0.01315558]
[1733660378769,0.09492364,99628.0,99627.0,0.01315558]
[1733660379071,0.45572364,99628.0,99627.0,0.01315558]
[1733660379466,0.09492364,99628.0,99627.0,0.01315558]
[1733660379670,0.22677276,99628.0,99627.0,0.01315558]
[1733660379868,0.58757276,99628.0,99627.0,0.01315558]
[1733660380175,0.45572364,99628.0,99627.0,0.01315558]
[1733660380368,0.6363604,99628.0,99627.0,0.01315558]
[1733660381568,0.45572364,99628.0,99627.0,0.01315558]
[1733660384778,0.45572364,99628.0,99627.0,0.01315587]
[1733660391681,0.4557257,99628.0,99627.0,0.01315587]
[1733660392676,0.045142,99619.0,99618.0,0.23997682]
[1733660392888,0.045145,99613.0,99612.0,8.795e-05]
[1733660393177,0.19556278,99613.0,99612.0,8.795e-05]
[1733660393383,0.09394231,99613.0,99612.0,8.795e-05]
[1733660393678,0.045148,99607.0,99596.0,0.01]
[1733660393883,0.48114881,99597.0,99593.0,0.23997682]
[1733660394074,0.48114881,99597.0,99585.0,0.055157]
[1733660394075,0.045154,99593.0,99592.0,0.23997682]
[1733660394272,0.045155,99590.0,99589.0,0.23997682]
[1733660394577,0.045158,99584.0,99583.0,0.67046407]
[1733660394771,0.045158,99584.0,99583.0,0.96379713]
[1733660394974,0.045158,99584.0,99583.0,0.6700328]
[1733660395180,0.045158,99584.0,99583.0,0.38250884]
[1733660395374,0.045158,99584.0,99583.0,0.39498225]
[1733660395688,0.045158,99584.0,99583.0,0.38584207]
[1733660396082,0.045158,99584.0,99583.0,0.37336214]
[1733660396885,0.045158,99584.0,99583.0,0.37736214]
[1733660397180,0.046158,99584.0,99583.0,0.37735835]
[1733660397672,0.046158,99584.0,99583.0,0.36488873]
[1733660397869,0.046158,99584.0,99583.0,0.37735426]
[1733660398171,0.046158,99584.0,99583.0,0.00408873]
[1733660400382,0.0462571,99584.0,99583.0,0.00408873]
[1733660400585,0.0462571,99584.0,99568.0,0.3608]
[1733660400586,0.0010991,99584.0,99568.0,0.3608]
[1733660400793,0.045164,99572.0,99568.0,0.3608]
[1733660401081,0.045164,99572.0,99555.0,0.24026106]
[1733660401082,0.045168,99562.0,99558.0,0.04517]
[1733660401381,0.045171,99557.0,99551.0,0.045173]
[1733660401684,0.3608,99570.0,99552.0,0.01256107]
[1733660401685,0.045172,99554.0,99552.0,0.01256107]
[1733660401879,0.045172,99554.0,99553.0,0.0124478]
[1733660402396,0.045172,99554.0,99552.0,0.00011368]
[1733660403083,0.045172,99554.0,99552.0,0.00311368]
[1733660403284,0.046172,99554.0,99552.0,0.00311368]
[1733660404777,0.046172,99554.0,99553.0,0.00313894]
[1733660405182,0.046172,99554.0,99552.0,0.00311368]
[1733660405886,0.0333,99553.0,99552.0,0.00011368]
[1733660406684,0.0333,99553.0,99552.0,0.00311368]
[1733660408690,0.0333,99553.0,99528.0,0.01]
[1733660408691,0.045179,99537.0,99528.0,0.01]
[1733660408984,0.045179,99537.0,99520.0,0.00150718]
[1733660408985,0.045187,99521.0,99520.0,0.00150718]
[1733660409782,0.0453049,99521.0,99520.0,0.00150718]
[1733660410592,0.0463049,99521.0,99520.0,0.00150718]
[1733660410784,0.0011179,99521.0,99520.0,0.00150718]
[1733660411485,0.0011179,99521.0,99520.0,0.045187]
[1733660411681,0.0011179,99521.0,99520.0,0.04832692]
[1733660411877,0.3608,99537.0,99533.0,0.045181]
[1733660412190,0.3608,99537.0,99534.0,0.110881]
[1733660412880,0.00010981,99536.0,99534.0,0.110881]
[1733660413493,0.00010981,99536.0,99517.0,0.01]
[1733660413693,0.00010981,99536.0,99484.0,0.045203]
[1733660413694,0.045188,99519.0,99518.0,0.01551071]
[1733660414183,0.3608,99525.0,99509.0,0.045192]
[1733660414490,0.3608,99525.0,99501.0,0.0326]
[1733660414491,0.3608,99517.0,99512.0,0.04519]
[1733660414684,0.3608,99517.0,99513.0,0.00314011]
[1733660414895,0.3608,99517.0,99514.0,0.00314011]
[1733660415188,0.3608,99517.0,99514.0,0.04519]
[1733660415392,0.3608,99517.0,99515.0,0.00314018]
[1733660415692,0.3608,99517.0,99515.0,0.045189]
[1733660415881,0.410981,99533.0,99516.0,0.01551309]
[1733660416188,0.410981,99533.0,99523.0,0.045185]
[1733660416189,0.045183,99529.0,99523.0,0.045185]
[1733660416380,0.045183,99529.0,99527.0,0.045184]
[1733660416580,0.3608,99533.0,99530.0,0.045182]
[1733660416781,0.3608,99533.0,99531.0,0.045182]
[1733660416986,0.405981,99533.0,99531.0,0.045182]
[1733660418983,0.3608,99533.0,99531.0,0.045182]
[1733660419191,0.3608,99533.0,99532.0,0.00313975]
[1733660419582,0.00010981,99536.0,99532.0,0.00313975]
[1733660419788,0.00010981,99536.0,99535.0,0.04518]
[1733660419988,0.00010981,99536.0,99535.0,0.04831975]
[1733660420299,0.00010981,99536.0,99535.0,0.05334292]
[1733660420993,0.00010981,99536.0,99535.0,0.0657265]
[1733660421193,0.045173,99552.0,99535.0,0.0657265]
[1733660421499,0.3608,99558.0,99541.0,0.3608]
[1733660421696,0.3608,99558.0,99542.0,0.03672299]
[1733660421898,0.045174,99551.0,99550.0,0.045174]
[1733660422295,0.04529461,99551.0,99550.0,0.045174]
[1733660423000,0.04529461,99551.0,99550.0,0.05333541]
[1733660423586,0.05029461,99551.0,99550.0,0.05333541]
[1733660424096,0.00512061,99551.0,99550.0,0.05333541]
[1733660424684,0.00912061,99551.0,99550.0,0.05333541]
[1733660424889,0.00912061,99551.0,99550.0,0.05333525]
[1733660426092,0.00912061,99551.0,99550.0,0.06576614]
[1733660426994,0.00912061,99551.0,99550.0,0.06576538]
[1733660427593,0.045162,99577.0,99567.0,0.045166]
[1733660427793,0.045162,99577.0,99575.0,0.045162]
[1733660428104,0.045162,99577.0,99576.0,0.00816049]
[1733660428407,0.045162,99577.0,99576.0,0.00815937]
[1733660428701,0.04526168,99577.0,99576.0,0.00815937]
[1733660428904,0.06520616,99577.0,99576.0,0.00815937]
[1733660429088,0.07420616,99577.0,99576.0,0.00815937]
[1733660429691,0.08320616,99577.0,99576.0,0.00815937]
[1733660432900,0.01809968,99577.0,99576.0,0.00815937]
[1733660434594,0.01809968,99577.0,99576.0,0.05340932]
[1733660435596,0.01809968,99577.0,99576.0,0.06583001]
[1733660435806,0.01809968,99577.0,99576.0,0.06683001]
[1733660436508,0.01609968,99577.0,99576.0,0.06783001]
[1733660438004,0.01609968,99577.0,99576.0,0.06781718]
[1733660438201,0.00809968,99577.0,99576.0,0.07481718]
[1733660438906,0.00709968,99577.0,99576.0,0.07081718]
[1733660439107,9.968e-05,99577.0,99576.0,0.07281718]
[1733660439910,9.968e-05,99577.0,99576.0,0.06981718]
[1733660440106,9.968e-05,99577.0,99576.0,0.07081718]
[1733660441313,9.968e-05,99577.0,99576.0,0.06579603]
[1733660441515,9.968e-05,99577.0,99576.0,0.07081666]
[1733660442217,9.968e-05,99577.0,99576.0,0.06579603]
[1733660442617,9.968e-05,99577.0,99576.0,0.06265781]
[1733660442815,9.968e-05,99577.0,99576.0,0.0657957]
[1733660445314,9.968e-05,99577.0,99576.0,0.06981633]
[1733660445515,9.968e-05,99577.0,99576.0,0.07081633]
[1733660445715,0.005,99595.0,99594.0,0.045154]
[1733660446018,0.045152,99597.0,99596.0,0.045153]
[1733660446622,0.04523665,99597.0,99596.0,0.045153]
[1733660446817,8.465e-05,99597.0,99596.0,0.045153]
[1733660448123,8.465e-05,99597.0,99596.0,0.04829062]
[1733660448328,0.00308465,99597.0,99596.0,0.04829062]
[1733660449035,8.465e-05,99597.0,99596.0,0.04829062]
[1733660449232,0.00308465,99597.0,99596.0,0.04829062]
[1733660449437,0.05323665,99597.0,99596.0,0.04829062]
[1733660449637,0.05323665,99597.0,99596.0,0.0533108]
[1733660449830,0.05023665,99597.0,99596.0,0.0533108]
[1733660450026,0.05323665,99597.0,99596.0,0.0533108]
[1733660451237,0.05123665,99597.0,99596.0,0.0533108]
[1733660453222,0.17111857,99597.0,99596.0,0.0533108]
[1733660453427,0.17111857,99597.0,99596.0,0.05331064]
[1733660454126,0.05123665,99597.0,99596.0,0.05331064]
[1733660454439,0.05223665,99597.0,99596.0,0.05331064]
[1733660455033,0.05123665,99597.0,99596.0,0.05331064]
[1733660455230,0.05123665,99597.0,99596.0,0.05331059]
[1733660455927,0.05123665,99597.0,99596.0,0.04829053]
[1733660457232,0.05123665,99597.0,99596.0,0.05331063]
[1733660457437,0.05123665,99597.0,99596.0,0.04829053]
[1733660457629,0.04923665,99597.0,99596.0,0.04829053]
[1733660457832,0.05223665,99597.0,99596.0,0.04829053]
[1733660458131,0.04823665,99597.0,99596.0,0.04829053]
[1733660458338,0.05123665,99597.0,99596.0,0.04829053]
[1733660458734,0.04823665,99597.0,99596.0,0.04829053]
[1733660458935,0.05223665,99597.0,99596.0,0.05331065]
[1733660459435,0.05223665,99597.0,99596.0,0.045153]
[1733660459630,0.05223665,99597.0,99596.0,0.05017316]
[1733660459942,0.05223665,99597.0,99596.0,0.05331076]
[1733660460331,0.04823665,99597.0,99596.0,0.05331076]
[1733660460533,0.05123665,99597.0,99596.0,0.05331076]
[1733660460945,0.04523665,99597.0,99596.0,0.05331076]
[1733660461235,0.05223665,99597.0,99596.0,0.05331076]
[1733660462237,0.04823665,99597.0,99596.0,0.05331076]
[1733660462635,0.05123665,99597.0,99596.0,0.05331076]
[1733660463328,0.00608465,99597.0,99596.0,0.05331076]
[1733660463934,0.00708465,99597.0,99596.0,0.05331076]
[1733660464233,0.00708465,99597.0,99596.0,0.06576391]
[1733660465338,0.00308465,99597.0,99596.0,0.06576391]
[1733660465537,0.00608465,99597.0,99596.0,0.06576391]
[1733660465737,0.11999862,99611.0,99605.0,0.045149]
[1733660466037,0.11999862,99611.0,99597.0,0.045152]
[1733660466038,0.045144,99615.0,99614.0,0.045145]
[1733660466238,0.045144,99615.0,99614.0,0.05330276]
[1733660466439,0.045144,99615.0,99614.0,0.06575591]
[1733660467643,0.054144,99615.0,99614.0,0.06675591]
[1733660468039,0.054144,99615.0,99614.0,0.06775591]
[1733660468040,0.060144,99615.0,99614.0,0.06775591]
[1733660468241,0.015,99615.0,99614.0,0.06775591]
[1733660469438,0.060144,99615.0,99614.0,0.06775591]
[1733660471241,0.060144,99615.0,99614.0,0.06773401]
[1733660475344,0.060144,99615.0,99614.0,0.02258901]
[1733660475546,0.060144,99615.0,99614.0,0.01015776]
[1733660475745,0.060144,99615.0,99596.0,0.01]
[1733660475746,0.045152,99597.0,99596.0,0.01]
[1733660475949,0.045152,99597.0,99596.0,0.01745164]
[1733660476144,0.0939541,99597.0,99596.0,0.00501972]
[1733660476454,0.045152,99597.0,99596.0,0.00501972]
[1733660476756,0.19811874,99597.0,99596.0,0.00501972]
[1733660477051,0.09895317,99597.0,99596.0,0.00501972]
[1733660477445,0.09895317,99597.0,99596.0,0.05017272]
[1733660477946,0.20012885,99597.0,99596.0,0.00501972]
[1733660478154,0.045153,99596.0,99595.0,0.045153]
[1733660478856,0.19512985,99596.0,99595.0,0.045153]
[1733660479950,0.045153,99596.0,99595.0,0.045153]
[1733660480247,0.050153,99596.0,99595.0,0.045153]
[1733660481554,0.047153,99596.0,99595.0,0.045153]
[1733660481758,0.045157,99591.0,99590.0,0.045155]
[1733660482051,0.045157,99591.0,99590.0,0.05017517]
[1733660482253,0.51077685,99594.0,99585.0,0.045157]
[1733660482555,0.045157,99586.0,99585.0,0.045157]
[1733660482761,0.1651482,99586.0,99585.0,0.045157]
[1733660483051,0.045158,99585.0,99584.0,0.00150621]
[1733660483261,0.045158,99585.0,99584.0,0.01393748]
[1733660483460,0.045158,99585.0,99584.0,0.00150621]
[1733660484553,0.046158,99585.0,99584.0,0.00150621]
[1733660484749,0.047158,99585.0,99584.0,0.00150621]
[1733660485555,0.047158,99585.0,99584.0,0.04666421]
[1733660485855,0.047158,99585.0,99584.0,0.05909241]
[1733660486256,0.047158,99585.0,99584.0,0.06411284]
[1733660487452,0.046158,99585.0,99584.0,0.06411284]
[1733660487755,0.046158,99585.0,99584.0,0.01066452]
[1733660488158,0.046158,99585.0,99584.0,0.00966452]
[1733660488663,0.046158,99585.0,99584.0,0.00150621]
[1733660488954,0.046158,99585.0,99584.0,0.00966465]
[1733660489352,0.046158,99585.0,99584.0,0.00464407]
[1733660490263,0.047158,99585.0,99584.0,0.00464407]
[1733660490651,0.046158,99585.0,99584.0,0.00464407]
[1733660490854,0.047158,99585.0,99584.0,0.00464407]
[1733660493762,0.13707904,99585.0,99584.0,0.00150621]
[1733660494363,0.05678292,99585.0,99584.0,0.00150621]
[1733660495058,0.05678292,99585.0,99576.0,8.795e-05]
[1733660495263,0.045161,99577.0,99576.0,8.795e-05]
[1733660495461,0.045161,99577.0,99576.0,0.00322608]
[1733660496559,0.08992104,99586.0,99576.0,0.00622608]
[1733660496865,0.45156104,99591.0,99577.0,0.00313813]
[1733660497070,0.045156,99589.0,99588.0,0.045156]
[1733660497263,0.045156,99589.0,99588.0,0.04829413]
[1733660497761,0.045156,99589.0,99588.0,0.05331456]
[1733660498160,0.047156,99589.0,99588.0,0.06572764]
[1733660498357,0.047156,99589.0,99588.0,0.02057164]
[1733660498958,0.047156,99589.0,99588.0,0.06572764]
[1733660499161,0.047156,99589.0,99588.0,0.05331456]
[1733660499355,0.047156,99589.0,99588.0,0.04829413]
[1733660499561,0.045156,99589.0,99588.0,0.00313813]
[1733660499766,0.046156,99589.0,99588.0,0.00313813]
[1733660500362,0.047156,99589.0,99588.0,0.00313813]
[1733660500761,0.046156,99589.0,99588.0,0.00313813]
[1733660500961,0.047156,99589.0,99588.0,0.00313813]
[1733660501363,0.046156,99589.0,99588.0,0.00313813]
[1733660501669,0.048156,99589.0,99588.0,0.00313813]
[1733660502869,0.049156,99589.0,99588.0,0.00313813]
[1733660505374,0.19913285,99589.0,99588.0,0.00313813]
[1733660505872,0.45876557,99589.0,99588.0,0.00313813]
[1733660506172,0.45876557,99589.0,99576.0,8.795e-05]
[1733660506475,0.045161,99577.0,99576.0,8.795e-05]
[1733660506676,0.045161,99577.0,99576.0,0.00824748]
[1733660507375,0.045161,99577.0,99576.0,0.01124748]
[1733660507777,0.045161,99577.0,99576.0,0.00824748]
[1733660507977,0.045161,99577.0,99576.0,0.01124748]
[1733660508180,0.16532425,99577.0,99576.0,0.01124748]
[1733660508483,0.045161,99577.0,99576.0,0.01124748]
[1733660509271,0.12015994,99577.0,99576.0,0.01124748]
[1733660509471,0.09012657,99579.0,99576.0,0.02369444]
[1733660509672,0.51101922,99589.0,99576.0,0.02369444]
[1733660509673,0.09012657,99582.0,99581.0,0.045159]
[1733660509874,0.045157,99586.0,99582.0,0.045159]
[1733660509875,0.09012657,99583.0,99582.0,0.045159]
[1733660510076,0.09012657,99583.0,99582.0,0.08411853]
[1733660510375,0.09012657,99583.0,99582.0,0.44491853]
[1733660510565,0.09012657,99586.0,99585.0,0.045158]
[1733660510770,0.09012657,99586.0,99585.0,0.06576449]
[1733660511671,0.045157,99587.0,99585.0,0.26106979]
[1733660511875,0.045157,99587.0,99586.0,0.06576349]
[1733660512270,0.13528357,99587.0,99586.0,0.06576349]
[1733660512577,0.09012657,99588.0,99587.0,0.045157]
[1733660512783,0.09012657,99591.0,99590.0,0.045155]
[1733660512973,0.045152,99598.0,99592.0,0.045154]
[1733660512974,0.09012657,99593.0,99592.0,0.045154]
[1733660513174,0.045152,99598.0,99593.0,0.045154]
[1733660513386,0.09012657,99602.0,99601.0,0.04515]
[1733660513580,0.09012657,99602.0,99601.0,0.23370051]
[1733660514183,0.09012657,99604.0,99601.0,0.00815953]
[1733660514371,0.09012657,99608.0,99602.0,0.00815953]
[1733660514677,0.12015994,99613.0,99600.0,0.031]
[1733660514678,0.09012657,99613.0,99606.0,0.24052275]
[1733660514873,0.12015994,99617.0,99611.0,0.045146]
[1733660514874,0.09012657,99612.0,99611.0,0.045146]
[1733660515075,0.045145,99614.0,99611.0,0.00815953]
[1733660515381,0.045145,99614.0,99613.0,0.045145]
[1733660515577,0.045145,99614.0,99613.0,0.05330453]
[1733660516386,0.051145,99614.0,99613.0,0.05330453]
[1733660517084,0.060145,99614.0,99613.0,0.05530453]
[1733660517579,0.051145,99614.0,99613.0,0.05430453]
[1733660517784,0.051145,99614.0,99613.0,0.05530453]
[1733660518689,0.046145,99614.0,99613.0,0.05430453]
[1733660519680,0.046145,99614.0,99613.0,0.046145]
[1733660519878,0.045147,99609.0,99607.0,0.045148]
[1733660520181,0.09012657,99612.0,99601.0,0.04515]
[1733660520387,9.622e-05,99620.0,99601.0,0.04515]
[1733660520388,0.045149,99603.0,99601.0,0.04515]
[1733660520571,0.045149,99603.0,99602.0,0.00815634]
[1733660520989,0.045149,99603.0,99602.0,0.02057718]
[1733660521289,0.045149,99603.0,99602.0,0.03299806]
[1733660521471,0.045149,99603.0,99602.0,0.03299831]
[1733660522278,0.045149,99603.0,99602.0,0.015558]
[1733660522477,0.045149,99603.0,99602.0,0.02057774]
[1733660522779,0.047149,99603.0,99602.0,0.02057774]
[1733660523179,0.047149,99603.0,99602.0,0.0091569]
[1733660523384,0.047149,99603.0,99602.0,0.0543069]
[1733660523582,0.046149,99603.0,99602.0,0.0543069]